Cogmind - Beta 15 @@@ ROGUE MODE // 2025.07.11 @ 20:11:48 Player: chebyrekser Result: Escaped! Performance ------------- Evolutions (9) 4500 Regions Visited (21) 4200 Robots Destroyed (348) 1740 Value Destroyed (13597) 13597 Prototype IDs (47) 940 Alien Tech Used (0) 0 Bonus (6691) 6691 TOTAL SCORE: 31668 Bonus ------- High Alert Combat Kills 153 Follower Combat Kills 1010 Entered Garrisons 600 Used RIF Installer 1000 Network Hubs Disabled 200 Aligned with FarCom 300 Met R17 at Cetus 500 Win 3000 Friendly Fire -72 Cogmind --------- Core Integrity 1578/1600 Matter 251/300 Energy 344/350 System Corruption 0% Temperature Cool (12) Movement Flying (32) Location To Epsilon Eridani Parts ------- > --- POWER (3) -------- Quantum Reactor > --- PROPULSION (7) --- Field Propulsion Array Field Propulsion Array Q-thruster Impulse Thruster Array > --- UTILITY (13) ----- Medium Storage Unit Structural Scanner Improved Targeting Computer Advanced Transmission Jammer Hacking Suite Hacking Suite Hacking Suite Hacking Suite Hacking Suite Improved Hacking Suite Advanced Hacking Suite Advanced Hacking Suite > --- WEAPON (2) ------- Phase Cannon Scythe > --- INVENTORY (10) --- Light Antimatter Reactor Nuclear Pulse Array Field Propulsion Array Advanced Signal Interpreter Phase Shifter Improved Medium Armor Plating Enhanced Quantum Rifle Micro-nuke Launcher Peak State ------------ > --- POWER ------------ Quantum Reactor > --- PROPULSION ------- Field Propulsion Array Field Propulsion Array Q-thruster Impulse Thruster Array > --- UTILITY ---------- Medium Storage Unit Structural Scanner Improved Targeting Computer Advanced Transmission Jammer Improved Phase Shifter Hacking Suite Hacking Suite Hacking Suite Hacking Suite Hacking Suite Improved Hacking Suite Advanced Hacking Suite Advanced Hacking Suite > --- WEAPON ----------- Phase Cannon Scythe > --- INVENTORY -------- Light Antimatter Reactor Nuclear Pulse Array Field Propulsion Array Advanced Signal Interpreter Phase Shifter Improved Medium Armor Plating Enhanced Quantum Rifle Micro-nuke Launcher [Rating: 125] Favorites ----------- Power Micro Nuclear Core Engine Light Angular Momentum Engine Power Core Micro Nuclear Core Reactor Light Antimatter Reactor Propulsion Improved Medium Treads Treads Improved Medium Treads Leg Aluminum Leg Wheel Armored Huge Wheel Hover Unit Antigrav System Flight Unit Field Propulsion Array Utility Advanced Heat Sink Device Advanced Heat Sink Storage High-capacity Storage Unit Processor Advanced Signal Interpreter Hackware Hacking Suite Protection Hardened Medium Armor Plating Weapon Scythe Energy Gun Gatling Laser Energy Cannon Improved EM Pulse Cannon Ballistic Gun Gauss Rifle Launcher Grenade Launcher Special Weapon Remote Datajack Slashing Weapon Scythe Piercing Weapon Makeshift Spear Special Melee Weapon Datajack Build | -11 -10 -10 -10 -9 -8 -7 -7 -7 -7 -6 -6 -6 -6 -6 -6 -6 -5 -4 -3 -2 -1 ------- Run | Yrd Mat Min Exi Min Mat Fac Gar Fac Gar Fac Gar Fac Ext Cet Arc Hub Fac Fac Res Res Acc Slots Evolved 18 | . . . . . 4 2 . . . 2 . . . . . . 2 2 2 2 2 Power 2 | . . . . . . . . . . 1 . . . . . . . . . . 1 Propulsion 5 | . . . . . 2 . . . . . . . . . . . 1 . 1 1 . Utility 11 | . . . . . 2 2 . . . 1 . . . . . . 1 2 1 1 1 Weapon . | . . . . . . . . . . . . . . . . . . . . . . Parts Attached 254 | 6 10 2 2 . 20 21 12 9 12 10 9 20 21 12 3 14 30 23 12 4 2 Power 31 | 1 1 . . . 1 3 1 1 1 3 . 1 5 1 1 1 4 3 2 1 . Engine 19 | 1 1 . . . . 3 . . . 2 . 1 5 1 . 1 2 1 1 . . Core 8 | . . . . . 1 . 1 1 1 1 . . . . 1 . 2 . . . . Reactor 4 | . . . . . . . . . . . . . . . . . . 2 1 1 . Propulsion 67 | 2 4 . 1 . 12 4 5 3 4 . 1 6 4 . 1 2 9 5 3 1 . Treads 21 | . 1 . 1 . 4 . 1 2 2 . 1 2 4 . 1 1 1 . . . . Leg 24 | 2 3 . . . 5 2 3 . 2 . . 3 . . . . 4 . . . . Wheel 13 | . . . . . 3 2 1 1 . . . 1 . . . 1 2 2 . . . Hover 2 | . . . . . . . . . . . . . . . . . 2 . . . . Flight 7 | . . . . . . . . . . . . . . . . . . 3 3 1 . Utility 105 | 1 3 . 1 . 4 8 3 2 5 6 6 7 10 6 1 10 11 11 7 2 1 Device 36 | 1 1 . . . 2 3 1 1 2 . 2 . 4 2 . 3 7 4 3 . . Storage 5 | . 1 . 1 . . . . . . . . 1 . . . 1 . 1 . . . Processor 7 | . . . . . . 2 . . . 1 . 1 . . . . . 1 2 . . Hackware 23 | . . . . . . . 1 . 2 . 3 2 . 1 . 3 2 4 2 2 1 Protection 34 | . 1 . . . 2 3 1 1 1 5 1 3 6 3 1 3 2 1 . . . Artifact . | . . . . . . . . . . . . . . . . . . . . . . Weapon 51 | 2 2 2 . . 3 6 3 3 2 1 2 6 2 5 . 1 6 4 . . 1 Energy Gun 19 | . 1 1 . . . 2 . 1 . 1 2 4 . 3 . 1 2 1 . . . Energy Cannon 7 | . . . . . . 1 . . . . . 2 1 . . . 2 1 . . . Ballistic Gun 10 | 2 . . . . 1 2 1 1 . . . . . 1 . . 2 . . . . Ballistic Cannon . | . . . . . . . . . . . . . . . . . . . . . . Launcher 8 | . 1 1 . . . 1 . 1 1 . . . 1 . . . . 1 . . 1 Special Weapon 2 | . . . . . . . . . 1 . . . . . . . . 1 . . . Impact Weapon . | . . . . . . . . . . . . . . . . . . . . . . Slashing Weapon 3 | . . . . . 1 . 1 . . . . . . 1 . . . . . . . Piercing Weapon 1 | . . . . . 1 . . . . . . . . . . . . . . . . Special Melee Weapon 1 | . . . . . . . 1 . . . . . . . . . . . . . . Unidentified Prototypes 8 | . . . . . . 1 . 1 1 . . . . 3 . . . 1 1 . . Corrupted Parts 1 | . . . . . . . 1 . . . . . . . . . . . . . . System Corruption 2 | . . . . . . . 2 . . . . . . . . . . . . . . Parts Lost 130 | . 7 1 . . 11 8 8 4 10 2 3 7 15 3 5 5 35 1 3 1 1 Power 19 | . 1 1 . . . 1 1 . 1 2 . 1 3 1 . 1 5 1 . . . Propulsion 39 | . 3 . . . 6 3 5 1 3 . 1 1 1 . 3 1 11 . . . . Utility 41 | . 1 . . . 3 2 1 3 3 . . 3 6 2 1 3 10 . 2 . 1 Weapon 31 | . 2 . . . 2 2 1 . 3 . 2 2 5 . 1 . 9 . 1 1 . Highest Loss Streak 19 | . 4 1 . . 4 3 4 1 4 1 1 2 6 3 3 2 19 1 3 1 1 To Critical Strikes 4 | . . . . . . . . . . . . 1 . . 1 . 2 . . . . Average Backups 17 | 3 11 15 15 16 13 19 18 19 16 17 17 19 23 22 19 23 21 6 7 8 7 Power 1 | . 1 2 2 2 1 1 . . 1 . . . . 1 1 2 2 . . 1 1 Propulsion 2 | 1 3 4 3 3 1 4 2 1 2 3 2 3 4 3 1 2 1 1 2 2 2 Utility 7 | . 4 6 5 6 6 7 8 10 7 9 10 9 11 10 8 9 8 1 3 3 3 Weapon 5 | . 1 3 4 4 3 5 6 6 4 3 3 5 6 7 7 8 8 1 1 1 1 Tool/Special . | . . . . . . . . . . . . . . . . . . . . . . Unused Backups 32 | . . 1 2 . . 1 . 3 1 . 1 2 2 3 . 2 7 1 . . 6 Power 2 | . . . . . . . . . . . . . . . . . 2 . . . . Propulsion 10 | . . . 1 . . 1 . . 1 . . . 1 1 . 2 . 1 . . 2 Utility 10 | . . 1 1 . . . . 1 . . 1 . 1 2 . . 1 . . . 2 Weapon 9 | . . . . . . . . 2 . . . 2 . . . . 3 . . . 2 Tool/Special 1 | . . . . . . . . . . . . . . . . . 1 . . . . Average Slot Usage (%) 85 | . 92 93 59 71 86 85 91 88 72 88 92 89 87 85 85 90 87 69 77 73 77 Engine 4 | . 13 10 . . . 5 5 . . 5 6 5 9 10 6 5 5 1 . . . Core 3 | . . . . . 8 1 1 7 6 3 5 6 2 . 4 6 4 . . . . Treads 11 | . 3 14 15 28 21 10 1 11 10 13 12 12 10 13 18 20 15 . . . . Leg 6 | . 24 14 12 . 3 12 18 7 6 6 6 5 . . . . 5 . . . . Wheel 2 | . . . . . 5 5 6 7 1 . . . 5 6 . . . 2 . . . Flight 1 | . . . . . . . . . . . . . . . . . . 11 14 14 16 Device 13 | . 10 14 14 14 12 13 15 15 15 13 7 11 9 11 13 17 17 14 15 13 11 Storage 6 | . 13 14 14 14 9 7 7 7 7 6 6 6 6 6 6 6 4 3 4 4 4 Processor 3 | . . . . . . 2 3 . . 1 6 6 6 6 6 6 5 4 4 4 4 Hackware 5 | . . . . . . . 3 6 6 6 11 5 2 1 . . 1 15 23 24 30 Protection 9 | . 1 . . . 6 7 10 8 2 16 12 15 19 20 20 13 9 2 . . . Energy Gun 4 | . 8 15 1 . 7 6 3 1 . 7 5 3 6 3 4 9 3 . 2 . . Energy Cannon 1 | . . . . . . . . 1 . 1 3 2 4 3 1 . 3 . 1 3 4 Ballistic Gun 1 | . 15 . . . 4 3 4 1 4 . . . . . . . . 3 . . . Launcher 1 | . . 9 1 14 2 . 4 3 2 . . . . . . . . . . . . Slashing Weapon 2 | . . . . . 1 . 1 5 4 2 2 3 . . 1 2 2 4 3 4 4 Peak Build Rating 125 | 6 9 9 8 8 23 38 40 44 63 75 78 77 77 84 87 84 90 89 101 122 125 Average Rating 56 | 3 7 8 6 7 18 28 36 38 41 69 74 70 71 74 77 81 75 69 90 103 121 On Entrance 46 | . 6 8 8 7 8 18 35 35 32 63 72 71 75 77 65 77 75 1 83 92 113 Naked Turns 3 | . . . . . . . . . . . . . . . . . . 3 . . . Heaviest Build 143 | 8 31 29 41 44 63 69 74 78 60 79 80 134 141 141 140 137 143 47 37 47 44 Greatest Support 145 | 20 20 20 40 40 63 60 30 44 95 95 95 105 75 28 135 135 145 35 38 54 54 Greatest Overweight (x) 35 | . 1 1 1 1 6 6 4 7 5 . 2 4 5 5 4 8 35 10 . . . Average Overweight (x) 1 | . . 1 . 1 3 2 3 5 1 . . . 3 3 . . 1 . . . . Largest Inventory Capacity 25 | 5 15 15 20 20 20 20 20 20 20 20 20 25 25 25 25 25 25 10 10 10 10 Average Capacity 19 | 5 14 15 15 20 20 20 20 20 20 20 20 22 25 25 25 25 24 8 10 10 10 Most Carried 25 | 5 15 15 16 17 18 20 20 20 20 20 20 25 25 25 24 25 25 10 10 10 10 Average Carried 18 | 3 11 14 15 16 13 19 19 19 17 19 19 21 24 23 19 23 21 7 9 9 9 Final Capacity 25 | 5 15 15 20 20 20 20 20 20 20 20 20 25 25 25 25 25 5 10 10 10 10 Final Carried 25 | 5 15 15 16 17 18 20 19 18 20 20 18 25 25 24 20 23 5 10 10 10 10 Class Distribution -------------------- 52% | Scavenger-Mutant 22% | Mutant 9% | Bothacker-Mutant 8% | Hacker-Mutant Dominant Class ---------------- Mutant | -10/Materials Mutant | -10/Mines Mutant | -10/Exiles Mutant | -9/Mines Scavenger-Mutant | -8/Materials Scavenger-Mutant | -7/Factory Scavenger-Mutant | -7/Garrison Scavenger-Mutant | -7/Factory Bothacker-Mutant | -7/Garrison Bothacker-Mutant | -6/Factory Bothacker-Mutant | -6/Garrison Scavenger-Mutant | -6/Factory Scavenger-Mutant | -6/Extension Scavenger-Mutant | -6/Cetus Scavenger-Mutant | -6/Archives Scavenger-Mutant | -6/Hub_04(d) Scavenger-Mutant | -5/Factory Hacker-Mutant | -4/Factory Hacker-Mutant | -3/Research Wizard-Sprinter | -2/Research Wizard-Sprinter | -1/Access Resources | -11 -10 -10 -10 -9 -8 -7 -7 -7 -7 -6 -6 -6 -6 -6 -6 -6 -5 -4 -3 -2 -1 ----------- Run | Yrd Mat Min Exi Min Mat Fac Gar Fac Gar Fac Gar Fac Ext Cet Arc Hub Fac Fac Res Res Acc Matter Collected 7659 | 286 360 45 . 56 709 521 424 361 597 253 391 701 695 327 100 355 792 272 358 16 40 Remotely . | . . . . . . . . . . . . . . . . . . . . . . Salvage Created 14914 | 75 687 79 . 52 844 1229 579 545 667 587 641 1518 2167 249 337 1337 2445 367 404 65 40 Parts 648 | 8 47 3 . 19 47 61 20 37 29 29 20 53 74 5 9 46 91 29 17 4 . Haulers Intercepted 5 | . 2 . . . 1 . . . . . . . . . . 2 . . . . . Recyclers Shooed 29 | . 2 . . . 1 3 . . . 2 . 2 9 . . 1 8 1 . . . Parts Field Recycled . | . . . . . . . . . . . . . . . . . . . . . . Retrieved Matter . | . . . . . . . . . . . . . . . . . . . . . . Parts Self-Destructed . | . . . . . . . . . . . . . . . . . . . . . . Prevented . | . . . . . . . . . . . . . . . . . . . . . . Kills | -11 -10 -10 -10 -9 -8 -7 -7 -7 -7 -6 -6 -6 -6 -6 -6 -6 -5 -4 -3 -2 -1 ------- Run | Yrd Mat Min Exi Min Mat Fac Gar Fac Gar Fac Gar Fac Ext Cet Arc Hub Fac Fac Res Res Acc Combat Hostiles Destroyed 219 | 1 13 2 . 12 18 14 12 12 14 6 11 13 23 7 4 18 24 11 1 3 . Guns 90 | 1 8 . . . 8 7 9 4 4 4 5 9 5 . 2 16 8 . . . . Cannons 31 | . . . . . . . . 2 . 1 6 2 4 1 1 . 12 2 . . . AOE 82 | . 5 2 . 12 10 5 3 6 10 1 . 2 10 3 . . 1 9 . 3 . Classes Destroyed 18 | 3 5 . . . 1 3 2 1 . 1 2 . . . . . . . . . . Worker 29 | 1 1 2 . . 2 7 . 2 . 1 . 4 . . . 4 5 . . . . Builder 22 | . 1 . . . 4 1 . 1 . . . 3 . . . 1 7 4 . . . Tunneler 8 | 1 1 . . 2 1 . . . . 2 . . 1 . . . . . . . . Hauler 5 | . 2 . . . 1 . . . . . . . . . . 2 . . . . . Recycler 30 | . 1 . . . 2 3 . 2 . 2 . 5 7 . . 1 5 . 2 . . Mechanic 4 | . . . . . . 1 . . . . 1 . . . . . 2 . . . . Operator 6 | . . . . . . . . . . 1 . 1 2 . . 1 . . 1 . . Watcher 24 | . 3 . . . 2 2 . 1 . 3 . 1 2 . . 3 2 2 2 . 1 Swarmer 53 | . 3 . . 12 4 3 . 5 3 1 2 . 6 . . . 2 9 . 3 . Grunt 83 | 1 10 2 . . 9 6 10 2 7 . 6 4 8 2 . 6 10 . . . . Brawler 1 | . . . . . . . 1 . . . . . . . . . . . . . . Duelist 1 | . . . . . . . . 1 . . . . . . . . . . . . . Sentry 33 | . . . . . 5 1 . 1 1 3 1 2 7 . 4 5 2 1 . . . Demolisher 1 | . . . . . . . 1 . . . . . . . . . . . . . . Specialist 1 | . . . . . . . . . . . 1 . . . . . . . . . . Hunter 8 | . . . . . . 2 . 1 . . . 1 . . . 3 1 . . . . Programmer 30 | . . . . . . 2 . 2 3 2 . 6 . . . 4 9 1 1 . . Behemoth 3 | . . . . . . . . . . . 1 . 2 . . . . . . . . Cetus Guard 5 | . . . . . . . . . . . . . . 5 . . . . . . . Thug 1 | . . . . . . . . . . . . . . 1 . . . . . . . Best Kill Streak 11 | 2 6 4 . 5 11 5 4 3 6 3 3 3 9 4 1 4 7 6 2 3 1 Combat Bots Only 7 | 1 5 2 . 4 7 3 4 3 6 1 3 2 7 4 1 3 5 6 1 3 . Max Kills in Single Turn 5 | 1 4 2 . 3 3 2 2 2 2 3 1 2 2 1 1 1 2 5 1 3 1 Gunslinging . | . . . . . . . . . . . . . . . . . . . . . . Exploded 4 | . 3 1 . 3 2 1 2 2 2 1 . 1 2 1 . . 1 4 . 3 . Melee . | . . . . . . . . . . . . . . . . . . . . . . Uniques/NPCs Destroyed . | . . . . . . . . . . . . . . . . . . . . . . Combat | -11 -10 -10 -10 -9 -8 -7 -7 -7 -7 -6 -6 -6 -6 -6 -6 -6 -5 -4 -3 -2 -1 -------- Run | Yrd Mat Min Exi Min Mat Fac Gar Fac Gar Fac Gar Fac Ext Cet Arc Hub Fac Fac Res Res Acc Hostile Shots Fired 1857 | 4 79 2 . 21 110 89 116 61 99 109 60 146 299 58 58 162 308 27 24 15 10 Missed 603 | 2 15 . . 8 33 29 32 20 40 33 10 57 113 21 13 56 94 7 8 6 6 Hits 1254 | 2 64 2 . 13 77 60 84 41 59 76 50 89 186 37 45 106 214 20 16 9 4 Melee 14 | . . . . . . . 7 4 . . . 3 . . . . . . . . . Projectile 1240 | 2 64 2 . 13 77 60 77 37 59 76 50 86 186 37 45 106 214 20 16 9 4 AOE 6 | . . . . . . . 5 . . . . . . . . 1 . . . . . Critical Strikes 50 | . 1 . . 1 1 3 5 4 3 . 2 2 2 2 4 1 14 1 2 1 1 Part Disruptions 3 | . . . . . . . . . . . 2 . . . . 1 . . . . . Damage Taken 21614 | 24 792 33 . 268 1267 1030 1624 847 961 1031 810 1318 2912 897 1061 1470 4112 448 398 213 98 Core 2458 | 12 89 . . 88 140 88 144 73 129 87 56 62 212 77 45 128 771 66 121 48 22 Absorbed by Shields . | . . . . . . . . . . . . . . . . . . . . . . Ignored by Resistances 87 | . . . . . 22 . . . . . . . 35 30 . . . . . . . Core Remaining (%) 65 | 95 . . . 24 74 . . . 38 . . . . . . 21 22 94 90 96 98 Volleys Fired 877 | 6 75 2 . 11 77 59 66 37 34 27 36 67 91 27 27 77 120 9 17 12 . Largest 2 | 2 2 1 . 1 2 2 2 2 2 2 2 2 2 2 2 2 2 2 2 1 . Hottest 240 | 40 70 30 . 30 90 136 84 149 149 160 160 170 165 171 171 160 240 145 145 85 . Shots Fired 1356 | 12 122 2 . 11 98 89 84 51 39 49 52 113 150 34 54 142 208 15 19 12 . Gun 925 | 12 119 . . . 68 75 69 32 22 43 25 63 91 7 36 142 102 6 13 . . Cannon 280 | . . . . . . 4 . 12 1 4 17 34 49 18 18 . 100 6 6 11 . Launcher 117 | . 3 2 . 11 30 10 15 7 13 1 1 . 10 9 . . 1 3 . 1 . Special 34 | . . . . . . . . . 3 1 9 16 . . . . 5 . . . . Kinetic 259 | 12 85 . . . 34 35 54 15 13 . . . . . . . 9 2 . . . Thermal 794 | . 34 . . . 34 40 15 17 9 43 25 71 80 25 54 142 182 6 6 11 . Explosive 95 | . 3 2 . 11 30 3 . 7 13 1 1 . 10 9 . . 1 3 . 1 . Electromagnetic 174 | . . . . . . 11 15 12 1 4 17 26 60 . . . 11 4 13 . . Robot Hit Streak 36 | 3 7 . . 3 11 18 10 11 8 24 17 18 18 8 14 36 12 7 8 2 . Robot Miss Streak 8 | 1 5 . . 2 2 3 3 3 2 4 3 8 5 4 1 6 4 1 2 2 . Penetration Max 1 | . . . . . . 1 1 . . . . . . . . . 1 . . . . Secondary Targets 4 | . 1 . . . . . . . . . 1 . 1 . . . 1 . . . . Max Gunslinging Chain 1 | . 1 . . . . . . . . . 1 . 1 . . . 1 . . . . Shots Hit Robots 1115 | 7 68 . . 5 75 76 61 47 45 41 45 102 120 25 44 124 164 21 26 11 8 Core Hits 712 | 3 37 5 . 15 60 43 31 31 39 36 34 52 69 36 12 104 66 20 10 6 3 Critical Kills 13 | 1 . . . . . 2 . . . . . . 1 3 . . 5 . 1 . . Critical Parts Destroyed 3 | . 1 . . . . 1 . 1 . . . . . . . . . . . . . Critical Strikes 39 | 1 2 . . . 3 5 . 1 . . 1 . 6 4 2 1 8 1 2 1 1 Burn 11 | . 1 . . . 1 1 . . . . . . 3 1 2 . 2 . . . . Meltdown 8 | . . . . . . . . . . . . . 1 3 . . 3 . 1 . . Destroy 8 | 1 1 . . . . 3 . 1 . . . . . . . . 2 . . . . Corrupt 3 | . . . . . . . . . . . 1 . 2 . . . . . . . . Sever 6 | . . . . . . . . . . . . . . . . 1 1 1 1 1 1 Impale 3 | . . . . . 2 1 . . . . . . . . . . . . . . . Melee Attacks 343 | . . . . . 19 20 8 15 30 6 12 38 11 . . 19 23 56 41 26 19 Impact . | . . . . . . . . . . . . . . . . . . . . . . Slashing 308 | . . . . . 4 5 4 15 30 6 12 37 11 . . 19 23 56 41 26 19 Piercing 31 | . . . . . 15 15 . . . . . 1 . . . . . . . . . Sneak Attacks 71 | . . . . . 7 9 . 8 . . 1 14 5 . . 3 16 6 2 . . Combat Hostiles . | . . . . . . . . . . . . . . . . . . . . . . Follow-up Attacks . | . . . . . . . . . . . . . . . . . . . . . . Damage Inflicted 40039 | 95 1167 193 . 834 2719 2616 1569 2053 2645 1424 1133 3174 4446 1388 1201 3289 6182 1877 1070 682 282 Guns 15581 | 95 887 . . . 712 1149 972 557 369 1095 582 1281 1677 124 784 2916 2080 61 240 . . Cannons 6598 | . . . . . . 123 . 149 . 24 366 667 1150 510 417 . 2629 202 209 152 . Explosions 10437 | . 262 193 . 819 1575 638 597 766 1207 247 125 199 1191 754 . . 428 1032 57 347 . Melee 6998 | . . . . . 413 595 . 581 1069 38 60 978 385 . . 264 1004 582 564 183 282 Ramming 425 | . 18 . . 15 19 111 . . . 20 . 49 43 . . 109 41 . . . . Kinetic 3357 | 95 665 . . . 380 704 827 222 133 . . . . . . . 310 21 . . . Thermal 17770 | . 222 . . 98 332 759 193 486 236 1310 582 1731 1816 634 1201 2916 4634 202 266 152 . Explosive 8244 | . 262 193 . 721 1575 135 . 615 1207 32 125 . 1146 754 . . 100 1032 . 347 . Electromagnetic 3245 | . . . . . . 312 549 149 . 24 366 416 1056 . . . 93 40 240 . . Impact . | . . . . . . . . . . . . . . . . . . . . . . Slashing 6132 | . . . . . 95 47 . 581 1069 38 60 978 385 . . 264 1004 582 564 183 282 Piercing 866 | . . . . . 318 548 . . . . . . . . . . . . . . . Highest Corruption 19 | . 1 1 1 1 . 2 5 10 10 4 4 7 7 7 7 19 19 . 6 . . Average Corruption 5 | . 1 1 1 1 . 1 1 8 10 2 4 4 7 7 7 9 7 . 5 . . Corruption Purged 2 | . . . . . . 2 . . . . . . . . . . . . . . . Corruption Blocked . | . . . . . . . . . . . . . . . . . . . . . . Effects 482 | . 5 8 3 3 . 10 7 50 40 9 21 68 63 25 16 81 58 . 15 . . Message Errors 124 | . 3 2 . 3 . 2 2 12 14 4 7 18 16 6 3 16 12 . 4 . . Matter Fused 122 | . . . . . . 2 3 14 10 4 7 18 12 8 5 25 11 . 3 . . Heat Flow Errors 69 | . 2 2 . . . . 1 9 5 1 3 10 8 3 3 10 9 . 3 . . Energy Discharges 45 | . . . . . . 4 1 5 3 . . 6 3 4 2 9 6 . 2 . . Parts Rejected 5 | . . . . . . . . . . . 1 1 2 . . . 1 . . . . Parts Fused 9 | . . . . . . . . . 3 . 1 2 2 . . . 1 . . . . Data Loss (minor) 51 | . . 3 2 . . 1 . 5 2 . 2 5 10 4 2 8 6 . 1 . . Data Loss (major) 21 | . . 1 1 . . . . 1 2 . . 4 3 . . 6 2 . 1 . . Misfires 14 | . . . . . . . . 2 . . . 2 4 . . 3 2 . 1 . . Alerts 7 | . . . . . . 1 . . 1 . . . 1 . 1 1 2 . . . . Misdirections 4 | . . . . . . . . 1 . . . . . . . 1 2 . . . . Weapon Failures 11 | . . . . . . . . 1 . . . 2 2 . . 2 4 . . . . Overload Shots 1 | . . . . . . . . . . . . . . . . . 1 . . . . Overflow Damage 1985 | . 8 . . 8 194 205 . 150 89 92 . 258 80 . . 50 484 250 17 75 25 Projectiles 131 | . . . . . . . . . . . . 40 . . . . 84 1 . 6 . Explosions 606 | . 8 . . 8 8 125 . 22 40 84 . 31 10 . . . 95 106 . 69 . Melee 1248 | . . . . . 186 80 . 128 49 8 . 187 70 . . 50 305 143 17 . 25 Knockbacks 1 | . . . . . . . . . . . . . . . . 1 . . . . . Impact 1 | . . . . . . . . . . . . . . . . 1 . . . . . Kinetic . | . . . . . . . . . . . . . . . . . . . . . . Secondary . | . . . . . . . . . . . . . . . . . . . . . . Self-Inflicted Damage 1218 | . 21 . . 177 147 179 97 123 191 . . 114 51 . . . 31 31 56 . . Shots 38 | . 1 . . 8 4 4 7 3 6 . . 1 1 . . . 1 1 1 . . Rammed 43 | . . 1 . 3 3 11 . . . 2 . 3 2 . . 11 7 . . . . Targets Rammed 47 | . 3 1 . 3 3 11 . . . 2 . 3 2 . . 12 7 . . . . Kicked 3 | . 3 . . . . . . . . . . . . . . . . . . . . Crushed 1 | . . . . . . . . . . . . . . . . 1 . . . . . Highest Temperature 620 | . 260 181 . 14 33 120 134 252 264 165 457 356 620 240 276 224 252 198 219 91 . Average Temperature 87 | . 59 78 . 9 12 47 15 88 86 49 139 104 165 104 43 35 89 71 62 38 . Received Heat Transfer 5374 | 12 411 18 . . 531 204 711 120 228 108 205 156 1166 189 108 264 853 63 18 . 9 Effects 22 | . . . . . . . . . . . 11 . 10 . 1 . . . . . . Shutdowns 5 | . . . . . . . . . . . 1 . 4 . . . . . . . . Energy Bleed 4 | . . . . . . . . . . . 2 . 1 . 1 . . . . . . Interference 10 | . . . . . . . . . . . 6 . 4 . . . . . . . . Matter Decay 1 | . . . . . . . . . . . 1 . . . . . . . . . . Short Circuit 1 | . . . . . . . . . . . 1 . . . . . . . . . . Damage (core) 1 | . . . . . . . . . . . . . 1 . . . . . . . . Siege Activations . | . . . . . . . . . . . . . . . . . . . . . . Martial Activations . | . . . . . . . . . . . . . . . . . . . . . . Shielding Activations . | . . . . . . . . . . . . . . . . . . . . . . Robots Disrupted . | . . . . . . . . . . . . . . . . . . . . . . Combat Hostiles . | . . . . . . . . . . . . . . . . . . . . . . Robots Corrupted 2 | . . . . . . 1 . . . . . . 1 . . . . . . . . Combat Hostiles 2 | . . . . . . 1 . . . . . . 1 . . . . . . . . Parts Fried 11 | . . . . . . . 2 . . . . 3 5 . . . . . 1 . . Impact Corruptions . | . . . . . . . . . . . . . . . . . . . . . . Robots Melted 16 | . . . . . . 1 . . . . . . 3 4 1 2 4 . 1 . . Combat Hostiles 14 | . . . . . . 1 . . . . . . 3 3 1 2 3 . 1 . . Parts Melted 78 | . . . . . . 2 . 1 . 8 2 8 9 7 5 22 12 . 2 . . Heat Transferred 31605 | . 740 . . 100 954 1263 420 800 500 2500 1275 3050 3675 1059 1982 6475 6161 222 244 185 . Parts Sabotaged . | . . . . . . . . . . . . . . . . . . . . . . Parts Stolen . | . . . . . . . . . . . . . . . . . . . . . . Parts Stripped . | . . . . . . . . . . . . . . . . . . . . . . Power Chain Reactions 7 | . . . . . . . 2 . . . . 2 1 . . . . . 1 1 . Alert | -11 -10 -10 -10 -9 -8 -7 -7 -7 -7 -6 -6 -6 -6 -6 -6 -6 -5 -4 -3 -2 -1 ------- Run | Yrd Mat Min Exi Min Mat Fac Gar Fac Gar Fac Gar Fac Ext Cet Arc Hub Fac Fac Res Res Acc Maximum Alert Level 2 | . . . . 1 2 1 2 1 2 1 1 . 1 . . . 1 1 . 1 . Low Security (%) 79 | 100 100 100 . 66 53 62 16 62 16 41 85 100 90 100 100 100 82 96 100 98 100 Level 1 16 | . . . . 33 24 37 31 37 64 58 14 . 9 . . . 17 3 . 1 . Level 2 3 | . . . . . 21 . 52 . 18 . . . . . . . . . . . . Level 3 . | . . . . . . . . . . . . . . . . . . . . . . Level 4 . | . . . . . . . . . . . . . . . . . . . . . . Level 5 . | . . . . . . . . . . . . . . . . . . . . . . High Security . | . . . . . . . . . . . . . . . . . . . . . . Max Security . | . . . . . . . . . . . . . . . . . . . . . . Peak Influence 670 | 25 188 59 . 345 488 279 670 351 535 365 228 119 269 196 15 83 343 366 180 201 114 Initial 351 | . 9 . . . 126 204 196 351 161 280 . 119 35 147 . . 11 140 180 . 114 Average 112 | 3 48 5 . 190 229 167 422 169 339 183 148 36 42 67 2 21 96 72 87 35 37 Influence Increases 9690 | 30 430 69 . 445 912 725 554 583 494 378 358 468 1087 226 73 520 1054 572 259 351 102 Destroy 0b10 Robot/C 4055 | 20 260 40 . 240 360 280 260 240 210 105 165 195 585 165 60 270 375 165 15 45 . Destroy 0b10 Robot/NC 579 | 10 45 10 . 10 60 70 . 30 16 36 4 56 48 4 . 48 84 24 20 . 4 Destroy Leader 834 | . 60 10 . 40 86 74 20 52 24 46 16 74 60 8 . 122 84 36 12 8 2 Allied During Kill 133 | . . . . . . . 2 . . 1 . . 105 19 . . 6 . . . . Successful Hack 280 | . 15 . . . 24 38 . . 11 13 11 24 21 6 . 20 3 21 54 19 . Disable Machine 1056 | . . . . 45 90 150 . 195 . 144 . 36 120 . 12 12 192 48 12 . . Anti-Garrison Action 214 | . . . . . . . 100 . 76 . 38 . . . . . . . . . . Destroy Structure 1438 | . 20 9 . 80 127 83 22 66 145 33 52 71 76 24 1 12 226 194 50 135 12 Partial Spotted 147 | . . . . . 15 . . . . . . . . . . . 24 24 24 24 36 Lose Combat Pursuer 954 | . 30 . . 30 150 30 150 . 12 . 72 12 72 . . 36 60 60 72 120 48 Influence Decreases 9670 | 15 445 69 . 120 787 894 165 1023 189 913 130 623 897 489 73 497 790 515 603 160 273 Entered New Map 1842 | . 6 . . . 199 246 85 319 69 255 . 109 38 116 . . 12 147 164 . 77 Time Decay 5577 | 15 318 59 . 120 478 568 . 514 . 478 . 455 365 303 53 464 290 352 409 150 186 Lost Part 1095 | . 65 10 . . 110 80 80 40 100 10 30 49 60 30 20 33 318 10 30 10 10 Lost Ally 513 | . . . . . . . . . 20 20 100 10 297 40 . . 20 6 . . . Purge Threat 643 | . 56 . . . . . . 150 . 150 . . 137 . . . 150 . . . . Squads Dispatched 62 | . 1 . . . 3 6 . 3 . 4 . 8 2 1 . 9 8 6 6 3 2 Investigation 6 | . 1 . . . . . . . . . . 1 1 1 . 1 . . 1 . . Extermination 34 | . . . . . . 3 . 2 . 3 . 6 . . . 4 6 5 . 3 2 Reinforcement 19 | . . . . . 3 . . 1 . 1 . 1 1 . . 4 2 1 5 . . Assault . | . . . . . . . . . . . . . . . . . . . . . . Garrison 3 | . . . . . . 3 . . . . . . . . . . . . . . . Intercept . | . . . . . . . . . . . . . . . . . . . . . . Searches Triggered . | . . . . . . . . . . . . . . . . . . . . . . Construction Impeded 5 | . . . . . 2 . . . . . . 1 . . . . 1 1 . . . Haulers Reinforced 4 | . . . . . . . . . . . . . . . . 1 1 . 2 . . Active Scanning Responses . | . . . . . . . . . . . . . . . . . . . . . . Cargo Convoy Interrupts . | . . . . . . . . . . . . . . . . . . . . . . Stealth | -11 -10 -10 -10 -9 -8 -7 -7 -7 -7 -6 -6 -6 -6 -6 -6 -6 -5 -4 -3 -2 -1 --------- Run | Yrd Mat Min Exi Min Mat Fac Gar Fac Gar Fac Gar Fac Ext Cet Arc Hub Fac Fac Res Res Acc Distress Signals 22 | . . . . . 4 . . 1 . 2 . . 2 2 . 3 . 2 5 1 . Communications Jammed 49 | . . . . . . . . . . . . . . . . 16 3 5 19 3 3 Distress Signals 41 | . . . . . . . . . . . . . . . . 8 3 5 19 3 3 Times Spotted 405 | 1 20 2 . 14 23 21 19 18 17 16 17 27 42 13 4 31 49 20 26 14 11 Peak Tracking Total 9 | 1 6 2 . 4 6 4 7 4 6 4 7 3 9 5 2 4 7 6 4 8 4 Tactical Retreats 43 | . 2 . . 2 4 1 4 . 1 . 3 1 1 . . 2 4 3 6 6 3 Traps | -11 -10 -10 -10 -9 -8 -7 -7 -7 -7 -6 -6 -6 -6 -6 -6 -6 -5 -4 -3 -2 -1 ------- Run | Yrd Mat Min Exi Min Mat Fac Gar Fac Gar Fac Gar Fac Ext Cet Arc Hub Fac Fac Res Res Acc Traps Triggered 29 | . 1 . . . . 1 3 2 1 4 . 2 6 . . 3 2 2 1 . 1 Indirectly . | . . . . . . . . . . . . . . . . . . . . . . Trap Hack Attempts . | . . . . . . . . . . . . . . . . . . . . . . Triggered . | . . . . . . . . . . . . . . . . . . . . . . Disarmed . | . . . . . . . . . . . . . . . . . . . . . . Reprogrammed . | . . . . . . . . . . . . . . . . . . . . . . Reused . | . . . . . . . . . . . . . . . . . . . . . . Traps Extracted . | . . . . . . . . . . . . . . . . . . . . . . Installed . | . . . . . . . . . . . . . . . . . . . . . . Triggered . | . . . . . . . . . . . . . . . . . . . . . . Machines | -11 -10 -10 -10 -9 -8 -7 -7 -7 -7 -6 -6 -6 -6 -6 -6 -6 -5 -4 -3 -2 -1 ---------- Run | Yrd Mat Min Exi Min Mat Fac Gar Fac Gar Fac Gar Fac Ext Cet Arc Hub Fac Fac Res Res Acc Machines Disabled 86 | . . . . 3 6 10 2 13 2 12 1 3 11 . 1 1 16 4 1 . . Max in Single Turn 11 | . . . . 3 2 5 1 6 1 11 1 2 1 . 1 1 8 2 1 . . Garrison Access 4 | . . . . . . . . . . . . . . . . 1 . . 1 1 1 Garrison Relay 5 | . . . . . . . 2 . 2 . 1 . . . . . . . . . . Network Hub 1 | . . . . . . . . . . . . . . . . 1 . . . . . Machines Repaired . | . . . . . . . . . . . . . . . . . . . . . . Machines Dismantled . | . . . . . . . . . . . . . . . . . . . . . . Machines Sabotaged . | . . . . . . . . . . . . . . . . . . . . . . Overloaded Fab Kills . | . . . . . . . . . . . . . . . . . . . . . . Hacking | -11 -10 -10 -10 -9 -8 -7 -7 -7 -7 -6 -6 -6 -6 -6 -6 -6 -5 -4 -3 -2 -1 --------- Run | Yrd Mat Min Exi Min Mat Fac Gar Fac Gar Fac Gar Fac Ext Cet Arc Hub Fac Fac Res Res Acc Machines Accessed 89 | . 7 . 2 1 4 5 1 5 2 6 2 6 9 3 1 5 4 6 7 7 6 Terminals 73 | . 7 . . 1 4 2 1 3 2 4 2 5 9 3 . 4 3 6 6 6 5 Fabricators 2 | . . . . . . 1 . 1 . . . . . . . . . . . . . Repair Stations . | . . . . . . . . . . . . . . . . . . . . . . Recycling Units 3 | . . . . . . . . . . 1 . 1 . . . . 1 . . . . Scanalyzers . | . . . . . . . . . . . . . . . . . . . . . . Garrison Access 8 | . . . . . . 2 . 1 . 1 . . . . . 1 . . 1 1 1 Total Hacks 272 | . 20 . 5 1 9 17 2 6 3 17 4 10 14 8 25 16 12 37 20 30 16 Successful 167 | . 9 . 5 1 6 9 . 3 2 9 1 5 6 2 25 9 3 23 9 27 13 Failed 103 | . 11 . . . 3 8 2 3 1 8 3 5 8 6 . 7 9 13 11 2 3 Catastrophic 24 | . 2 . . . 1 . 1 . . 1 . 3 3 3 . 4 2 3 . . 1 Database Lockouts 2 | . . . . . . . . . . . . . . . . . . 1 . 1 . Manual 100 | . 12 . 1 . 3 2 . 4 . 7 . 4 4 . . 6 5 20 10 14 8 Terminals 225 | . 20 . . 1 9 12 2 4 3 14 4 8 14 8 . 15 11 37 19 29 15 Fabricators 2 | . . . . . . 1 . 1 . . . . . . . . . . . . . Repair Stations . | . . . . . . . . . . . . . . . . . . . . . . Recycling Units 5 | . . . . . . . . . . 2 . 2 . . . . 1 . . . . Scanalyzers . | . . . . . . . . . . . . . . . . . . . . . . Garrison Access 10 | . . . . . . 4 . 1 . 1 . . . . . 1 . . 1 1 1 Terminal Hacks 143 | . 9 . 5 1 6 6 . 1 2 6 1 3 6 2 25 8 2 20 8 22 10 Record 67 | . . . 4 . 1 3 . . . 5 . 2 1 2 25 3 . 4 5 9 3 Robot Analysis 3 | . . . . . 1 . . . . . . . . . . . . . . 2 . Prototype ID Bank 8 | . . . . . . . . . . . . . . . . . . 6 . 2 . Open Door 5 | . . . . . . . . . . . . . 4 . . . . . . . 1 Level Access Points 4 | . . . . . . . . . . . . . . . . 1 . 1 . 1 1 Branch Access Points 2 | . . . . . . . . . . . . . . . . 1 . . 1 . . Emergency Access Points 3 | . . . . . . . . . 1 . 1 . . . . . . 1 . . . Terminal Index 4 | . 1 . . . . . . . . . . . . . . . . 1 . 1 1 Unreport Threat 6 | . 2 . . . . . . 1 . 1 . . 1 . . . 1 . . . . Locate Traps 13 | . 1 . . . 1 2 . . . . . . . . . 1 1 3 . 3 1 Patrol Status 1 | . . . . . . . . . . . . . . . . . . . . 1 . Hauler Manifests 3 | . 1 . . . . . . . . . . . . . . . . 2 . . . Registered Components 1 | . . . . . . . . . . . . . . . . . . . . . 1 Registered Prototypes 2 | . 1 . . . . . . . . . . . . . . . . . . . 1 Zone Layout 19 | . 3 . . 1 3 1 . . . . . 1 . . . 2 . 2 2 3 1 Patrol Navigation 1 | . . . . . . . . . 1 . . . . . . . . . . . . Proto ID Catalog 1 | . . . 1 . . . . . . . . . . . . . . . . . . Fabricator Hacks 2 | . . . . . . 1 . 1 . . . . . . . . . . . . . Network Status 2 | . . . . . . 1 . 1 . . . . . . . . . . . . . Repair Station Hacks . | . . . . . . . . . . . . . . . . . . . . . . Recycling Unit Hacks 3 | . . . . . . . . . . 1 . 1 . . . . 1 . . . . Report Inventory 3 | . . . . . . . . . . 1 . 1 . . . . 1 . . . . Scanalyzer . | . . . . . . . . . . . . . . . . . . . . . . Garrison Access Hacks 8 | . . . . . . 2 . 1 . 1 . . . . . 1 . . 1 1 1 Unlock Access 4 | . . . . . . 2 . 1 . 1 . . . . . . . . . . . Seal Access 4 | . . . . . . . . . . . . . . . . 1 . . 1 1 1 Unauthorized Hacks 11 | . . . . . . . . . . 1 . 1 . . . . . 3 . 4 2 Terminals 11 | . . . . . . . . . . 1 . 1 . . . . . 3 . 4 2 Assimilate 3 | . . . . . . . . . . 1 . 1 . . . . . 1 . . . Botnet 8 | . . . . . . . . . . . . . . . . . . 2 . 4 2 Fabricators . | . . . . . . . . . . . . . . . . . . . . . . Repair Stations . | . . . . . . . . . . . . . . . . . . . . . . Recycling Units . | . . . . . . . . . . . . . . . . . . . . . . Scanalyzers . | . . . . . . . . . . . . . . . . . . . . . . Garrison Access . | . . . . . . . . . . . . . . . . . . . . . . Data Cores Recovered 2 | . . . . . . . . . . 1 . 1 . . . . . . . . . Used 1 | . . . . . . . . . . . . 1 . . . . . . . . . Hacking Detections 73 | . 7 . . . 3 4 1 5 1 5 2 6 8 3 . 3 3 5 6 6 5 Full Trace Events 4 | . 1 . . . . . . . . . . . 1 1 . 1 . . . . . Feedback Events . | . . . . . . . . . . . . . . . . . . . . . . Feedback Blocked . | . . . . . . . . . . . . . . . . . . . . . . Robot Schematics Acquired . | . . . . . . . . . . . . . . . . . . . . . . Robots Built . | . . . . . . . . . . . . . . . . . . . . . . Authchips . | . . . . . . . . . . . . . . . . . . . . . . Time . | . . . . . . . . . . . . . . . . . . . . . . Total Robot Build Rating . | . . . . . . . . . . . . . . . . . . . . . . Part Schematics Acquired . | . . . . . . . . . . . . . . . . . . . . . . Parts Built . | . . . . . . . . . . . . . . . . . . . . . . Authchips . | . . . . . . . . . . . . . . . . . . . . . . Time . | . . . . . . . . . . . . . . . . . . . . . . Total Part Build Rating . | . . . . . . . . . . . . . . . . . . . . . . Parts Repaired . | . . . . . . . . . . . . . . . . . . . . . . Time . | . . . . . . . . . . . . . . . . . . . . . . Parts Recycled . | . . . . . . . . . . . . . . . . . . . . . . Recycled Matter . | . . . . . . . . . . . . . . . . . . . . . . Retrieved Matter . | . . . . . . . . . . . . . . . . . . . . . . Retrieved Components . | . . . . . . . . . . . . . . . . . . . . . . Parts Scanalyzed . | . . . . . . . . . . . . . . . . . . . . . . Part Schematics Acquired . | . . . . . . . . . . . . . . . . . . . . . . Parts Damaged . | . . . . . . . . . . . . . . . . . . . . . . Bothacking | -11 -10 -10 -10 -9 -8 -7 -7 -7 -7 -6 -6 -6 -6 -6 -6 -6 -5 -4 -3 -2 -1 ------------ Run | Yrd Mat Min Exi Min Mat Fac Gar Fac Gar Fac Gar Fac Ext Cet Arc Hub Fac Fac Res Res Acc Used RIF Installer 2 | . . . . . . . 1 . 1 . . . . . . . . . . . . Threat Obfuscator 1 | . . . . . . . . . 1 . . . . . . . . . . . . Robots Hacked 18 | . . . . . . . 2 . 2 1 6 4 . . . . 3 . . . . Non-combat 5 | . . . . . . . . . . . . 4 . . . . 1 . . . . Combat 13 | . . . . . . . 2 . 2 1 6 . . . . . 2 . . . . Robot Hacks Applied 22 | . . . . . . . 2 . 2 1 7 7 . . . . 3 . . . . parse_system 2 | . . . . . . . . . . . 1 1 . . . . . . . . . no_distress 1 | . . . . . . . . . . . . 1 . . . . . . . . . find_chute 1 | . . . . . . . . . . . . . . . . . 1 . . . . map_walls 1 | . . . . . . . . . . . . 1 . . . . . . . . . map_earth 1 | . . . . . . . . . . . . 1 . . . . . . . . . drop_inventory 1 | . . . . . . . . . . . . 1 . . . . . . . . . locate_stockpiles 1 | . . . . . . . . . . . . 1 . . . . . . . . . link_fov 1 | . . . . . . . . . . . . 1 . . . . . . . . . reboot_system 1 | . . . . . . . 1 . . . . . . . . . . . . . . go_dormant 1 | . . . . . . . . . . . 1 . . . . . . . . . . overwrite_iff 1 | . . . . . . . 1 . . . . . . . . . . . . . . streamctrl_high 5 | . . . . . . . . . 1 1 2 . . . . . 1 . . . . formatsys_high 5 | . . . . . . . . . 1 . 3 . . . . . 1 . . . . Relay Couplers Released 26 | . . . . . . . 9 . 8 . 5 . . . . . 4 . . . . Machine Destruction 22 | . . . . . . . 9 . 8 . 5 . . . . . . . . . . Programmers 4 | . . . . . . . . . . . . . . . . . 4 . . . . Attached 10 | . . . . . . . 1 . 2 . 3 1 . . . . 2 1 . . . Fabnet Peak Effective % . | . . . . . . . . . . . . . . . . . . . . . . Robots Rewired 15 | . . . . . . . . . . . . . 15 . . . . . . . . Allies Hacked . | . . . . . . . . . . . . . . . . . . . . . . Hacks Repelled . | . . . . . . . . . . . . . . . . . . . . . . Allies | -11 -10 -10 -10 -9 -8 -7 -7 -7 -7 -6 -6 -6 -6 -6 -6 -6 -5 -4 -3 -2 -1 -------- Run | Yrd Mat Min Exi Min Mat Fac Gar Fac Gar Fac Gar Fac Ext Cet Arc Hub Fac Fac Res Res Acc Total Allies 34 | . . . . . . . 1 . 2 1 5 1 21 . . . 2 1 . . . Largest Group 8 | . . . . . . . 1 . 2 1 1 1 8 3 . . 2 1 . . . Highest-Rated Group 220 | . . . . . . . 16 . 32 29 41 10 220 90 . . 76 10 . . . Highest-Rated Ally 47 | . . . . . . . 16 . 16 29 41 10 39 39 . . 47 10 . . . Total Orders 4 | . . . . . . . . . . . 2 . 1 . . . . 1 . . . STAY 2 | . . . . . . . . . . . 1 . . . . . . 1 . . . GUARD 1 | . . . . . . . . . . . 1 . . . . . . . . . . AID 1 | . . . . . . . . . . . . . 1 . . . . . . . . Ally Attacks 162 | . . . . . . . 2 . 2 6 9 . 118 18 . . 7 . . . . Total Damage 3116 | . . . . . . . 15 . 18 97 367 . 2042 465 . . 112 . . . . Kills 24 | . . . . . . . 1 . . 1 . . 16 5 . . 1 . . . . Allies Corrupted . | . . . . . . . . . . . . . . . . . . . . . . Allies Melted 1 | . . . . . . . . . . . . . . 1 . . . . . . . Intel | -11 -10 -10 -10 -9 -8 -7 -7 -7 -7 -6 -6 -6 -6 -6 -6 -6 -5 -4 -3 -2 -1 ------- Run | Yrd Mat Min Exi Min Mat Fac Gar Fac Gar Fac Gar Fac Ext Cet Arc Hub Fac Fac Res Res Acc Active Infowar (turns) 17871 | 5 1163 794 846 257 760 1707 904 1410 305 1032 2 2265 1 . . 1529 1478 1373 1031 529 480 Optics 1062 | . . . . . . 653 409 . . . . . . . . . . . . . . Terrain 3 | . . . . . . . . . . . . . 1 . . . 2 . . . . Structural 13652 | . 787 794 846 257 760 1707 904 1410 206 1032 2 2265 . . . . . 642 1031 529 480 Seismic 1718 | 5 376 . . . . . . . . . . . . . . 2 . 1335 . . . Cloaking 19 | . . . . . . . . . . . . . . . . 19 . . . . . Jamming 5989 | . . . . . . . . 48 305 . . . . . . 1527 1478 707 915 529 480 Robot Analysis Total 3 | . . . . . 1 . . . . . . . . . . . . . . 2 . Derelict Logs Recovered 2 | . . 2 . . . . . . . . . . . . . . . . . . . Drone Launches . | . . . . . . . . . . . . . . . . . . . . . . Drone Recoveries . | . . . . . . . . . . . . . . . . . . . . . . Exploration | -11 -10 -10 -10 -9 -8 -7 -7 -7 -7 -6 -6 -6 -6 -6 -6 -6 -5 -4 -3 -2 -1 ------------- Run | Yrd Mat Min Exi Min Mat Fac Gar Fac Gar Fac Gar Fac Ext Cet Arc Hub Fac Fac Res Res Acc Turns Passed 27231 | 130 1552 794 846 257 1665 1707 904 1410 1149 1307 1115 3125 2173 750 453 2206 2268 1380 1031 529 480 Spaces Moved 17259 | 101 651 326 352 94 736 821 418 684 485 681 425 1402 814 407 187 755 865 2335 2305 1247 1168 Core 246 | 37 . . . . . . . . . . . . . . . . 137 72 . . . Treads 5460 | . 149 326 352 94 191 226 . 2 296 681 369 1229 117 . 166 754 508 . . . . Legs 850 | 64 502 . . . 19 . 10 . 45 . 56 . . . . . 154 . . . . Wheels 3726 | . . . . . 526 595 408 682 144 . . 173 697 407 21 1 66 6 . . . Hover . | . . . . . . . . . . . . . . . . . . . . . . Flight 6977 | . . . . . . . . . . . . . . . . . . 2257 2305 1247 1168 Fastest Speed 32 | 50 120 240 160 240 140 145 160 155 155 165 165 160 145 145 145 160 50 34 34 32 32 Average Speed 121 | 94 196 240 238 240 165 157 162 172 187 165 176 184 176 156 166 202 187 39 34 33 32 Slowest Speed 1800 | 120 240 240 240 240 470 240 260 385 470 165 250 240 320 175 240 245 1800 280 34 34 32 Overloaded Moves . | . . . . . . . . . . . . . . . . . . . . . . Propulsion Burnouts . | . . . . . . . . . . . . . . . . . . . . . . Robots Hopped 19 | . . . . . . . . . . . . . . . . . . 10 5 1 3 Potential Cave-ins 2 | . . . . . . . . . 2 . . . . . . . . . . . . Cave-ins Triggered . | . . . . . . . . . . . . . . . . . . . . . . Exploration Rate (%) 48 | 5 88 84 78 32 49 23 36 22 63 21 40 38 74 78 85 55 28 43 65 38 30 Regions Visited 21 Branch Regions 7 Pre-discovered Areas 2 | . . 1 1 . . . . . . . . . . . . . . . . . . Known Exits Taken 10 | . . . . . . 1 . 1 . 1 . 1 1 1 1 1 . 1 . 1 . Unknown Exits Taken 8 | 1 1 1 1 1 1 . . . . . . . . . . . 1 . 1 . . Scrap Searched 2 | . . 1 . 1 . . . . . . . . . . . . . . . . . Spaces Dug 176 | . . . . 5 35 2 . 7 . 4 . 16 10 . . 12 8 38 17 18 4 Terrain Destroyed 1195 | . 16 9 . 93 163 122 3 76 132 31 14 67 90 63 1 12 116 96 26 61 4 Melee 134 | . . . . . 10 2 . 3 . 4 . 16 3 . . 12 7 38 17 18 4 Projectile 38 | . . . . . . . . . . . . 6 3 2 1 . 24 . . 2 . AOE 1023 | . 16 9 . 93 153 120 3 73 132 27 14 45 84 61 . . 85 58 9 41 . Terrain Rammed . | . . . . . . . . . . . . . . . . . . . . . . Walls Destroyed . | . . . . . . . . . . . . . . . . . . . . . . Machines Disabled . | . . . . . . . . . . . . . . . . . . . . . . Actions | -11 -10 -10 -10 -9 -8 -7 -7 -7 -7 -6 -6 -6 -6 -6 -6 -6 -5 -4 -3 -2 -1 --------- Run | Yrd Mat Min Exi Min Mat Fac Gar Fac Gar Fac Gar Fac Ext Cet Arc Hub Fac Fac Res Res Acc Total 21463 | 123 797 335 361 111 1054 1115 555 840 637 790 708 1768 1378 489 276 1218 1219 2672 2466 1310 1241 Wait 1871 | . 40 . . 1 162 135 16 63 49 46 188 164 217 15 46 300 101 192 78 15 43 Move 17204 | 100 650 325 351 93 735 821 417 684 484 681 424 1401 813 406 186 754 864 2316 2294 1244 1161 Hop 17 | . . . . . . . . . . . . . . . . . . 8 5 1 3 Pick Up 245 | 11 17 2 2 2 20 19 11 9 11 3 7 29 24 7 4 17 22 19 4 3 2 Fast Attach 61 | . 1 1 . . . 8 . 4 1 3 2 4 3 2 . . 6 12 10 3 1 Attach 177 | 6 6 1 . 1 17 9 7 4 12 3 4 13 20 7 10 6 28 16 5 1 1 Detach 35 | . . . 2 . . 1 . 1 2 . . 6 1 7 3 . 2 5 4 1 . Swap 258 | . 4 1 2 . 18 15 11 13 12 16 30 29 24 9 . 26 34 9 2 1 2 Drop 125 | . 1 2 4 . 3 17 3 10 2 3 5 15 12 9 . 5 12 12 6 3 1 Fire 877 | 6 75 2 . 11 77 59 66 37 34 27 36 67 91 27 27 77 120 9 17 12 . Melee 342 | . . . . . 19 20 8 15 30 6 12 37 11 . . 19 23 56 41 26 19 Ram 24 | . . . . . 3 11 . . . . . 2 2 . . . 6 . . . . Kick 3 | . 3 . . . . . . . . . . . . . . . . . . . . Crush 20 | . . 1 . 3 . . . . . 2 . 1 . . . 12 1 . . . . Escape Stasis 74 | . . . . . . . 16 . . . . . 30 . . 2 . 18 . . 8 Rewire 130 | . . . . . . . . . . . . . 130 . . . . . . . . Trap . | . . . . . . . . . . . . . . . . . . . . . . Miscellaneous . | . . . . . . . . . . . . . . . . . . . . . . Route ------- -11/Scrapyard -10/Materials (discovered 4 exits: [*Mat x3] / [*Min]) -10/Mines (discovered 3 exits: [*Mat x2] / *Exi) -10/Exiles -9/Mines -8/Materials -7/Factory (discovered 2 exits: Gar / Gar) -7/Garrison -7/Factory -7/Garrison -6/Factory (discovered 3 exits: *Fac / *Low / Gar) -6/Garrison -6/Factory (discovered 5 exits: *Fac x2 / *Low x2 / *Ext) -6/Extension (discovered 2 exits: *Fac / *Cet) -6/Cetus (discovered 3 exits: *Fac x2 / *Arc) -6/Archives (discovered 3 exits: *Fac / *Hub x2) -6/Hub_04(d) (discovered 4 exits: *Fac x4) -5/Factory -4/Factory (discovered 4 exits: *Res x4) -3/Research (discovered 3 exits: *Res / *Tes x2) -2/Research (discovered 3 exits: *Acc x3) -1/Access To Epsilon Eridani History --------- Turn | Location | Event 2 | -11/Scrapyard | Met Revision 17 96 | -11/Scrapyard | Discovered new exit (range 8) 131 | -11/Scrapyard | Entered Materials 300 | -10/Materials | Build established: Mutant 454 | -10/Materials | Discovered new exit (range 3) 772 | -10/Materials | Lost 4 parts (1p2n1w) 1011 | -10/Materials | Discovered new exit (range 15) 1112 | -10/Materials | Discovered new exit (range 16) 1578 | -10/Materials | Discovered new exit (range 11) 1683 | -10/Materials | Entered Mines 1840 | -10/Mines | YI-UF0 nonchalantly dropped a Grenade Launcher on the ground 1964 | -10/Mines | Assembled infested the area 2087 | -10/Mines | Learned Materials terminal intel 2123 | -10/Mines | Discovered new exit (range 10) 2460 | -10/Mines | Discovered new exit (range 13) 2465 | -10/Mines | Discovered new exit (range 6) 2477 | -10/Mines | Entered Exiles 2537 | -10/Exiles | Met 8R-AWN 2583 | -10/Exiles | Met EX-HEX 2740 | -10/Exiles | Visited The Gauntlet 2801 | -10/Exiles | Met EX-DEC 2863 | -10/Exiles | Learned location of Zion (-7) 2904 | -10/Exiles | Met EX-BIN 2938 | -10/Exiles | Aligned with FarCom system 2940 | -10/Exiles | Given EX-Vault access code 2995 | -10/Exiles | Opened EX-Vault 3013 | -10/Exiles | Found Cloak of Protection 3062 | -10/Exiles | Warned to stay clear of 0b10 Research branches 3299 | -10/Exiles | Discovered new exit (range 10) 3323 | -10/Exiles | Left Exiles lab with Cloak of Protection 3323 | -10/Exiles | Entered Mines 3351 | -9/Mines | Met a Derelict bent on vengeance 3372 | -9/Mines | A weapon hastily lodged in a ceiling crevice suddenly fell to the ground 3492 | -9/Mines | Core integrity fell below 50% 3553 | -9/Mines | Discovered new exit (range 5) 3580 | -9/Mines | Entered Materials 3580 | -8/Materials | Evolved 4 slots: Propulsion x2, Utility x2 3581 | -8/Materials | Loaded intel: 11 terminal locations 3882 | -8/Materials | Build established: Scavenger-Mutant 4518 | -8/Materials | Destroyed 7 combat bots 4528 | -8/Materials | Lost 4 parts (2n1u1w) 4995 | -8/Materials | Discovered new exit (range 16) 5245 | -8/Materials | Entered Factory 5245 | -7/Factory | Evolved 2 slots: Utility x2 5588 | -7/Factory | Identified exit to Garrison 5638 | -7/Factory | Garrison activated, responded to threat 5666 | -7/Factory | Lost 3 parts (1p1n1u) 6782 | -7/Factory | Build established: Scavenger-Assassin 6952 | -7/Factory | Identified exit to Garrison 6952 | -7/Factory | Entered Garrison 7088 | -7/Garrison | Installed Relay Interface Framework 7130 | -7/Garrison | Garrison Relay disabled 7132 | -7/Garrison | Triggered checkpoint 7153 | -7/Garrison | Build established: Scavenger-Skirmisher 7393 | -7/Garrison | Lost 4 parts (2n1u1w) 7470 | -7/Garrison | Garrison Relay disabled 7534 | -7/Garrison | Triggered checkpoint 7689 | -7/Garrison | Build established: Scavenger-Mutant 7795 | -7/Garrison | Discovered new exit (range 9) 7856 | -7/Garrison | Entered Factory 8696 | -7/Factory | System corruption reached 10% 9266 | -7/Factory | Identified exit to Garrison 9266 | -7/Factory | Entered Garrison 9376 | -7/Garrison | Expanded RIF knowledge: Threat Obfuscation 9504 | -7/Garrison | Core integrity fell below 50% 9534 | -7/Garrison | Lost 4 parts (2n1u1w) 9572 | -7/Garrison | Triggered checkpoint 9603 | -7/Garrison | Lost 4 parts (1n2u1w) 9942 | -7/Garrison | Garrison Relay disabled 10096 | -7/Garrison | Triggered checkpoint 10269 | -7/Garrison | Build established: Bothacker-Mutant 10283 | -7/Garrison | Garrison Relay disabled 10400 | -7/Garrison | Discovered new exit (range 9) 10415 | -7/Garrison | Entered Factory 10415 | -6/Factory | Evolved 2 slots: Power x1, Utility x1 10989 | -6/Factory | Allied Derelicts emerged from ambush trap array 11190 | -6/Factory | Discovered new exit (range 15) 11291 | -6/Factory | Identified exit to Lower Caves 11601 | -6/Factory | Discovered new exit (range 13) 11625 | -6/Factory | Identified exit to Factory 11722 | -6/Factory | Identified exit to Garrison 11722 | -6/Factory | Entered Garrison 11886 | -6/Garrison | Garrison Relay disabled 12149 | -6/Garrison | Spotted B-75 Beast 12184 | -6/Garrison | Triggered checkpoint 12200 | -6/Garrison | Destroyed B-75 Beast 12298 | -6/Garrison | Triggered checkpoint 12768 | -6/Garrison | Discovered new exit (range 10) 12824 | -6/Garrison | Spotted B-90 Cyclops 12837 | -6/Garrison | Entered Factory 12914 | -6/Factory | Build established: Scavenger-Mutant 13802 | -6/Factory | Discovered exit to Factory (range 12) 14472 | -6/Factory | Discovered exit to Factory (range 10) 15309 | -6/Factory | Build established: Mutant 15355 | -6/Factory | Discovered exit to Lower Caves (range 6) 15387 | -6/Factory | Discovered exit to Lower Caves (range 16) 15820 | -6/Factory | Discovered new exit (range 12) 15959 | -6/Factory | Identified exit to Extension 15962 | -6/Factory | Entered Extension 16295 | -6/Extension | Rescued a captive Derelict 16439 | -6/Extension | Rescued a captive Derelict 16441 | -6/Extension | Rescued a captive Derelict 16600 | -6/Extension | Build established: Scavenger-Mutant 16637 | -6/Extension | Rescued a captive Derelict 16642 | -6/Extension | Spotted B-75 Beast 16707 | -6/Extension | Lost 4 allies 16773 | -6/Extension | Destroyed B-75 Beast 16798 | -6/Extension | Lost 5 parts (2p1n1u1w) 16969 | -6/Extension | Spotted B-75 Beast 17012 | -6/Extension | Destroyed B-75 Beast 17060 | -6/Extension | Lost 6 parts (3u3w) 17137 | -6/Extension | Disrupted transfer network 17154 | -6/Extension | Rescued a captive Derelict 17199 | -6/Extension | Lost 3 parts (1p2u) 17779 | -6/Extension | Lost 5 allies 17886 | -6/Extension | Rescued a captive Derelict 17953 | -6/Extension | Lost 7 allies 17967 | -6/Extension | Destroyed 7 combat bots 18118 | -6/Extension | Discovered exit to Factory (range 10) 18120 | -6/Extension | Discovered new exit (range 6) 18131 | -6/Extension | Identified exit to Cetus 18135 | -6/Extension | Entered Cetus 18135 | -6/Cetus | Accompanied by 3 allies 18164 | -6/Cetus | Spotted Cetus Guard 18165 | -6/Cetus | Spotted Cetus Guard 18165 | -6/Cetus | Allies destroyed Cetus Guard 18177 | -6/Cetus | Destroyed Cetus Guard 18263 | -6/Cetus | Discovered exit to Factory (range 16) 18553 | -6/Cetus | Core integrity fell below 50% 18575 | -6/Cetus | Discovered new exit (range 16) 18609 | -6/Cetus | Spotted Cetus Guard 18647 | -6/Cetus | Spotted Cetus Guard 18647 | -6/Cetus | Spotted Cetus Guard 18647 | -6/Cetus | Spotted Cetus Guard 18660 | -6/Cetus | Destroyed Cetus Guard 18664 | -6/Cetus | Destroyed Cetus Guard 18666 | -6/Cetus | Destroyed Cetus Guard 18677 | -6/Cetus | Destroyed Cetus Guard 18694 | -6/Cetus | Lost 3 parts (1p2u) 18728 | -6/Cetus | Discovered exit to Factory (range 15) 18736 | -6/Cetus | Met Revision 17 18792 | -6/Cetus | Identified exit to Archives 18885 | -6/Cetus | Security sweep announced 18885 | -6/Cetus | Entered Archives 18983 | -6/Archives | Lost 3 parts (2n1u) 19132 | -6/Archives | Unable to access archive contents 19148 | -6/Archives | Unable to access archive contents 19164 | -6/Archives | Unable to access archive contents 19180 | -6/Archives | Unable to access archive contents 19186 | -6/Archives | Discovered new exit (range 14) 19208 | -6/Archives | Discovered new exit (range 16) 19230 | -6/Archives | Identified exit to Hub_04(d) 19262 | -6/Archives | Discovered exit to Factory (range 16) 19338 | -6/Archives | Entered Hub_04(d) 20355 | -6/Hub_04(d) | System corruption reached 10% 21509 | -6/Hub_04(d) | Network Hub disabled 21544 | -6/Hub_04(d) | Entered Factory 21544 | -5/Factory | Evolved 2 slots: Propulsion x1, Utility x1 22552 | -5/Factory | Allied Derelicts emerged from ambush trap array 22621 | -5/Factory | Lost 3 allies 23082 | -5/Factory | Lost 7 parts (1p2n4u) 23494 | -5/Factory | System corruption reached 10% 23736 | -5/Factory | Core integrity fell below 50% 23768 | -5/Factory | Lost 19 parts (3p6n4u6w) 23804 | -5/Factory | Discovered new exit (range 15) 23812 | -5/Factory | Entered another Factory area 23812 | -4/Factory | Evolved 2 slots: Utility x2 23958 | -4/Factory | Build established: Mutant 24408 | -4/Factory | Build established: Hacker-Mutant 24727 | -4/Factory | Identified exit to Research 24727 | -4/Factory | Central database locked down 25192 | -4/Factory | Entered Research 25192 | -3/Research | Evolved 2 slots: Propulsion x1, Utility x1 25244 | -3/Research | Spotted B-86 Titan 25392 | -3/Research | Revision forces began assault on 0b10 25722 | -3/Research | Discovered new exit (range 13) 25788 | -3/Research | Found Prototype Processor 25789 | -3/Research | Identified Exp. Target Analyzer 25798 | -3/Research | Lost 3 parts (2u1w) 25831 | -3/Research | Identified exit to Testing 25890 | -3/Research | Discovered new exit (range 11) 25892 | -3/Research | Research terminal network offline 26223 | -3/Research | Entered another Research area 26223 | -2/Research | Evolved 2 slots: Propulsion x1, Utility x1 26399 | -2/Research | Identified exit to Access 26688 | -2/Research | Central database locked down 26752 | -2/Research | Entered Access 26752 | -1/Access | Evolved 2 slots: Power x1, Utility x1 26826 | -1/Access | Build established: Wizard-Sprinter 27009 | -1/Access | Identified exit to Surface 27232 | *** | Escaped! Last Messages --------------- MC1W1DQW71: Cmb. Linear Gravjet HU9UJXH6HE: Arm. Heavy Treads XROMS0DL66: ECM Suite KNTOJZQL10: Adv. Heavy Siege Treads 8ZH55R74JP: Linear Accelerator Downloaded coordinate data. K-01 Serf cleans the TF Node. Acquired 40 matter. ALERT: Potential suspicious activity detected, Programmers report to Access Zone 5U. W-44 Eye distress signal jammed. Imp. Phase Shifter destroyed. Slug penetrates Wall. Connecting with Terminal... >>Open(Door) Sealed Barrier opened. The Access Shell folds into the floor. [Achievement: 20k Club] [Achievement: 30k Club] [Achievement: Epsilon Run] Map ----- +----------------------------------------------------+ | ?????????????????????????????????????????????????? | | ?????????????????????????????????????????????????? | | ?????????????????????????????????????????????????? | | ?????????????????????????????????????????????????? | | ?????????????????????????????????????????????????? | | ?????????????????????????????????????????????????? | | ?????????????????????????????????????????????????? | | ???????????????????BB????????????????????????????? | | ???????????????????BB????????????????????????????? | | ?????????????????????????????????????????????????? | | ?????????????????????????????????????????????????? | | ?????????????????????????????????????????????????? | | ?????????????????????????????????????????????????? | | ?????????????????????????????????????????????????? | | ?????????????????????BB????BB????????????????????? | | ?????????????????????BB????BB????????????????????? | | ?????????????????????????????????????????????????? | | ?????????????????????????????????????????????????? | | ?????????????????????????????????????????????????? | | ??????????????????##"????????"##?????????????????? | | ??????????????????##""""""""""##?????????????????? | | ??????????????????## ##?????????????????? | | ??????????????????## ##?????????????????? | | ??????????????????## #######????????????? | | ??????????????????## "" #######????????????? | | ??????????????????## "@ ### ???????????? | | ??????????????????## ### ???????????? | | ??????????????????## ### ???????????? | | ?????????????????### ### "???????????? | | ?????????????????### ### """"?????????? | | ?????????????????## ## """?????????? | | ?????????????????###"" ### ""??????????? | | ?????????????????###"" ### "??????????? | | ??????????????????##"" ### ???????????? | | ??????????????????##T ##? ???????????? | | ??????????????????##"" ##?? ????????????? | | ??????????????????##"" ### ## | | ??????????????????##"" #####+#############+ | | ????????????? | | ??????????? | | ???????????## ############################ #### | | ???????????## ? ############################ #### | | ???????????## ????????????????????????????## ##?? | | ??????????????????????????????????????????## # ?? | | ??????????????????????????????????????????## # ?? | | ??????????????????????????????????????????## # ?? | | ??????????????????????????????????????????## # ?? | | ??????????????????????????????????????????## # ?? | | ??????????????????????????????????????????## # ?? | | ??????????????????????????????????????????## # ?? | +----------------------------------------------------+ Best States ------------- Heat Dissipation 94 Energy Generation 32 Energy Capacity 505 Matter Stores 300 Matter Capacity 300 Sight Range 18 Terrain Scan Density 10 Jamming Range 16 Cloak Strength 5 Additional Mass Support 12 Armor Coverage 675 Resistance: KI 20 Resistance: TH 15 Resistance: EX 50 Phase Shifting 10 Evasion (%) 73 Targeting Accuracy 6 Recoil Reduction 5 Salvage Targeting 2 Offensive Hacking 90 Defensive Hacking 10 Relay Coupler Types 2 Relay Coupler Value 50 Item Schematics ----------------- None Robot Schematics ------------------ None Fabricated ------------ Nothing Repaired ---------- Nothing Alien Tech Used ----------------- None Achievements -------------- 20k Club 30k Club Assimilation Complete Dangerous Findings Denied? Dynamic Key Epsilon Run Factory Defaults Infiltrator It Was An Accident, I Swear It's Just You Knowing Is Half The Battle Let's See Who's Tougher No Signal Part-time Excavator Power Corrupts Prolific Hacker Quantum Hacking Revising The Future Shopping List Streaker The More The Merrier Total Silence root@ Challenges ------------ None Game ------ Seed ZhirovImpactWartreads Manual? 0 Play Time 05:01:17 Cumulative 7.7 hours Start 2025.07.10 @ 23:21:02 End 2025.07.11 @ 20:11:48 Sessions 5 Manual Loads 0 Difficulty Rogue Special Mode None Game No. 2 Rogue 2 Adventurer 0 Explorer 0 Win Type 0 Total 1 Types 1/0/0/0/0/0/0/0/0/0 Lore% 14 Gallery% 14 Achievement% 22 Wizard Run 0 Options --------- Layout 1 ASCII 0 Keyboard 0 Movement Mouse Keybinds 0 Fullscreen 1 Font 24/Smallcaps Map View 50x35 Zoom Use 0% Tactical HUD 0 Map Filters NONE Filters NONE Steam 1 RUN: 2be74882-a274-41c8-bd24-4e0632395c70